bitfinex/quotes_SOLUSD_20250107
["timestamp","ask_amount","ask_price","bid_price","bid_amount"]
[1736243351672,9.12448179,215.2,215.15,20.0]
[1736243352060,9.12448179,215.19,215.16,20.0]
[1736243352967,9.12448179,215.18,215.14,1.5499]
[1736243353164,9.12448179,215.15,215.14,1.5499]
[1736243354173,9.12448179,215.16,215.14,1.5499]
[1736243354747,9.12448179,215.17,215.14,1.5499]
[1736243354947,9.12448179,215.18,215.14,1.5499]
[1736243355546,9.12448179,215.17,215.14,1.5499]
[1736243357674,9.12448179,215.15,215.14,1.5499]
[1736243357870,9.12448179,215.15,215.09,1.6115]
[1736243358175,9.12448179,215.13,215.1,20.0]
[1736243358775,9.12448179,215.14,215.1,20.0]
[1736243360777,9.12448179,215.15,215.1,20.0]
[1736243360950,9.12448179,215.16,215.1,29.12448179]
[1736243368084,24.4704881,215.21,215.1,29.12448179]
[1736243368387,9.12448179,215.16,215.1,29.12448179]
[1736243369284,9.12448179,215.15,215.1,29.12448179]
[1736243369581,9.12448179,215.16,215.1,29.12448179]
[1736243372178,9.12448179,215.17,215.11,9.12448179]
[1736243372674,0.6936041,215.21,215.12,9.12448179]
[1736243372876,0.6936041,215.21,215.15,9.12448179]
[1736243372877,9.12448179,215.21,215.15,9.12448179]
[1736243373985,9.12448179,215.21,215.14,9.12448179]
[1736243374201,9.12448179,215.2,215.14,9.12448179]
[1736243376686,9.12448179,215.19,215.11,11.6219]
[1736243376868,9.12448179,215.18,215.12,9.12448179]
[1736243379489,0.6936041,215.24,215.12,9.12448179]
[1736243379793,9.12448179,215.18,215.12,9.12448179]
[1736243381897,9.12448179,215.18,215.11,9.12448179]
[1736243382390,9.12448179,215.13,215.09,1.6115]
[1736243382600,9.12448179,215.12,215.09,1.6115]
[1736243384393,9.12448179,215.12,215.07,6.3901]
[1736243384593,9.12448179,215.11,215.07,6.3901]
[1736243384893,9.12448179,215.11,215.08,20.0]
[1736243385190,9.12448179,215.09,215.04,13.1361]
[1736243385392,9.12448179,215.1,215.04,22.26058179]
[1736243385799,9.12448179,215.09,215.04,13.1361]
[1736243387691,9.12448179,215.09,215.04,22.26058179]
[1736243387874,9.12448179,215.1,215.04,22.26058179]
[1736243389776,9.12448179,215.1,215.05,9.12448179]
[1736243390099,0.6936041,215.16,215.05,9.12448179]
[1736243390406,9.12448179,215.1,215.04,13.1361]
[1736243390706,9.12448179,215.1,215.05,9.12448179]
[1736243391601,9.12448179,215.1,215.05,35.0]
[1736243391896,9.12448179,215.09,215.05,35.0]
[1736243393897,9.12448179,215.09,215.04,1.5105]
[1736243396697,9.12448179,215.1,215.05,20.0]
[1736243396884,9.12448179,215.1,215.04,45.63498179]
[1736243397075,9.12448179,215.11,215.05,9.12448179]
[1736243397269,9.06853163,215.11,215.05,9.12448179]
[1736243400014,20.6936041,215.18,215.07,9.12448179]
[1736243400176,9.12448179,215.14,215.07,9.12448179]
[1736243400698,9.12448179,215.15,215.09,9.12448179]
[1736243400910,0.6936041,215.2,215.1,9.12448179]
[1736243401076,0.6936041,215.2,215.06,0.69730441]
[1736243401280,0.6936041,215.23,215.15,9.12448179]
[1736243401494,9.12448179,215.21,215.15,9.12448179]
[1736243402479,9.12448179,215.21,215.16,20.0]
[1736243402887,37.19153126,215.27,215.16,20.0]
[1736243403109,9.12448179,215.22,215.16,20.0]
[1736243405519,9.12448179,215.21,215.16,20.0]
[1736243406202,9.12448179,215.19,215.12,1.5158]
[1736243406395,9.12448179,215.18,215.12,1.5158]
[1736243406581,9.12448179,215.19,215.13,9.12448179]
[1736243407005,9.12448179,215.2,215.14,29.12448179]
[1736243407394,9.12448179,215.19,215.14,20.0]
[1736243407594,9.12448179,215.15,215.06,0.69709542]
[1736243407809,9.12448179,215.12,215.07,9.12448179]
[1736243408104,9.12448179,215.13,215.07,9.12448179]
[1736243408696,9.12448179,215.14,215.08,9.12448179]
[1736243408899,9.12448179,215.14,215.09,9.12448179]
[1736243410814,9.12448179,215.15,215.09,9.12448179]
[1736243411112,0.6936041,215.2,215.11,9.12448179]
[1736243411315,9.12448179,215.17,215.11,9.12448179]
[1736243411493,9.12448179,215.16,215.1,9.12448179]
[1736243411811,0.6936041,215.2,215.1,9.12448179]
[1736243411993,9.12448179,215.16,215.1,9.12448179]
[1736243412719,9.12448179,215.15,215.1,9.12448179]
[1736243416418,9.12448179,215.15,215.06,20.0]
[1736243416608,9.12448179,215.15,215.09,9.12448179]
[1736243417024,0.6936041,215.2,215.09,9.12448179]
[1736243417202,9.12448179,215.15,215.09,44.12448179]
[1736243418310,9.12448179,215.16,215.1,9.12448179]
[1736243418828,9.12448179,215.15,215.09,44.12448179]
[1736243419122,9.12448179,215.15,215.09,9.12448179]
[1736243419320,9.12448179,215.14,215.08,9.12448179]
[1736243419620,9.12448179,215.11,215.06,20.0]
[1736243419825,0.6936041,215.18,215.06,29.12448179]
[1736243420124,9.12448179,215.12,215.06,29.12448179]
[1736243420327,9.12448179,215.13,215.07,9.12448179]
[1736243421023,0.6936041,215.16,215.07,9.12448179]
[1736243421228,9.12448179,215.13,215.07,9.12448179]
[1736243422834,0.6936041,215.19,215.09,9.12448179]
[1736243423006,9.12448179,215.16,215.1,9.12448179]
[1736243424023,9.12448179,215.15,215.09,9.12448179]
[1736243424225,9.12448179,215.14,215.08,9.12448179]
[1736243425033,9.12448179,215.13,215.07,9.12448179]
[1736243430333,9.12448179,215.12,215.06,29.12448179]
[1736243432134,9.12448179,215.12,215.06,64.12448179]
[1736243432331,9.12448179,215.13,215.07,9.12448179]
[1736243433336,9.12448179,215.12,215.06,64.12448179]
[1736243435644,23.776884,215.16,215.06,64.12448179]
[1736243435941,9.12448179,215.17,215.11,9.12448179]
[1736243436516,0.6936041,215.19,215.11,9.12448179]
[1736243436711,9.12448179,215.17,215.11,9.12448179]
[1736243437640,0.6936041,215.21,215.13,9.12448179]
[1736243437859,6.3275,215.25,215.15,9.12448179]
[1736243437860,9.12448179,215.2,215.15,9.12448179]
[1736243438136,9.12448179,215.21,215.15,9.12448179]
[1736243438722,0.6936041,215.24,215.15,9.12448179]
[1736243438923,9.12448179,215.21,215.15,9.12448179]
[1736243439844,9.12448179,215.19,215.14,9.12448179]
[1736243440741,0.6936041,215.24,215.14,9.12448179]
[1736243440933,9.12448179,215.2,215.14,9.12448179]
[1736243442655,9.12448179,215.2,215.12,36.647]
[1736243442656,11.06448179,215.21,215.15,9.12448179]
[1736243443048,0.6936041,215.24,215.12,36.647]
[1736243443356,9.12448179,215.24,215.18,9.12448179]
[1736243444031,9.12448179,215.23,215.17,9.12448179]
[1736243444437,9.12448179,215.21,215.15,29.12448179]
[1736243444841,9.12448179,215.22,215.16,9.12448179]
[1736243445026,9.12448179,215.21,215.16,9.12448179]
[1736243445547,2.6336041,215.25,215.16,9.12448179]
[1736243445723,9.12448179,215.21,215.15,29.12448179]
[1736243446156,9.12448179,215.21,215.15,64.12448179]
[1736243446652,9.12448179,215.2,215.15,55.0]
[1736243446842,9.12448179,215.19,215.13,9.12448179]
[1736243447241,2.6336041,215.25,215.15,9.12448179]
[1736243447428,1.94,215.25,215.15,9.12448179]
[1736243447734,9.12448179,215.18,215.14,20.0]
[1736243447940,9.12448179,215.17,215.12,1.647]
[1736243449136,20.0,215.24,215.13,9.12448179]
[1736243449449,9.12448179,215.19,215.13,9.12448179]
[1736243449853,9.12448179,215.19,215.13,44.12448179]
[1736243450352,9.12448179,215.19,215.13,9.12448179]
[1736243451038,9.12448179,215.18,215.12,1.647]
[1736243451243,9.12448179,215.18,215.12,10.77148179]
[1736243454956,9.12448179,215.18,215.12,1.647]
[1736243455366,9.12448179,215.15,215.07,1.5601]
[1736243455655,9.12448179,215.15,215.08,9.12448179]
[1736243456158,9.12448179,215.14,215.08,9.12448179]
[1736243456335,9.12448179,215.14,215.09,20.0]
[1736243456534,9.12448179,215.1,215.07,1.5601]
[1736243456763,9.12448179,215.09,215.03,12.32348868]
[1736243456964,9.12448179,215.09,215.03,21.44797047]
[1736243457146,9.12448179,215.09,215.03,20.75068179]
[1736243458355,9.12448179,215.09,215.03,55.75068179]
[1736243459858,9.12448179,215.09,215.03,46.6262]
[1736243460163,9.12448179,215.09,215.03,55.75068179]
[1736243460536,9.12448179,215.09,215.04,9.12448179]
[1736243461359,9.12448179,215.05,215.0,1961.90074593]
[1736243461561,9.12448179,215.04,215.0,1961.90074593]
[1736243461739,9.12448179,215.02,215.0,1961.90074593]
[1736243462333,9.12448179,215.03,215.0,1961.90074593]
[1736243463037,9.12448179,215.02,215.0,1961.90074593]
[1736243467971,11.06448179,215.04,215.0,1961.90074593]
[1736243468171,1.94,215.04,215.0,1961.90074593]
[1736243468972,1.96,215.05,215.01,9.12448179]
[1736243469159,9.12448179,215.07,215.01,9.12448179]
[1736243469358,1.96,215.06,215.01,9.12448179]
[1736243469570,11.08448179,215.06,215.0,1971.02522772]
[1736243469771,9.12448179,215.04,215.0,1961.90074593]
[1736243470073,9.12448179,215.03,215.0,1961.90074593]
[1736243471055,9.12448179,215.04,215.0,1961.90074593]
[1736243472575,1.96,215.06,215.0,1961.90074593]
[1736243472775,9.12448179,215.05,215.0,1961.90074593]
[1736243473375,20.0,215.09,215.0,1961.90074593]
[1736243473579,11.08448179,215.06,215.0,1961.90074593]
[1736243473764,9.12448179,215.06,215.0,1971.02522772]
[1736243474457,9.12448179,215.05,215.0,1961.90074593]
[1736243475254,9.12448179,215.03,215.0,1961.90074593]
[1736243476780,9.12448179,215.02,215.0,1961.90074593]
[1736243477659,9.12448179,215.04,215.0,1961.90074593]
[1736243478160,1.96,215.08,215.0,1961.90074593]
[1736243478375,9.12448179,215.05,215.0,1961.90074593]
[1736243479272,9.12448179,215.04,215.0,1961.90074593]
[1736243481756,1.96,215.07,215.01,9.82196533]
[1736243481971,1.96,215.07,215.02,9.12448179]
[1736243482171,11.08448179,215.07,215.01,9.82196533]
[1736243483181,9.12448179,215.07,215.01,9.82196533]
[1736243483880,9.12448179,215.07,215.01,9.12448179]
[1736243485091,9.12448179,215.07,215.0,1971.02522772]
[1736243488982,9.12448179,215.07,215.01,0.69740035]
[1736243489382,9.12448179,215.07,215.01,9.82188214]
[1736243490104,9.12448179,215.06,215.01,0.69740035]
[1736243491383,9.12448179,215.06,215.01,9.82188214]
[1736243491572,9.12448179,215.07,215.01,9.82188214]
[1736243491773,9.12448179,215.06,215.01,0.69740035]
[1736243493088,9.12448179,215.07,215.01,9.82188214]
[1736243493682,11.08448179,215.08,215.02,9.12448179]
[1736243493899,13.9363041,215.14,215.03,9.82185878]
[1736243494103,9.12448179,215.12,215.05,9.12448179]
[1736243494269,9.12448179,215.13,215.07,9.12448179]
[1736243494469,11.08448179,215.13,215.07,9.12448179]
[1736243494690,0.6936041,215.17,215.08,9.12448179]
[1736243494871,9.12448179,215.13,215.07,9.12448179]
[1736243495390,9.12448179,215.13,215.06,9.12448179]
[1736243496193,9.12448179,215.12,215.06,9.12448179]
[1736243497804,18.0466,215.18,215.09,9.12448179]
[1736243498089,9.12448179,215.14,215.08,9.12448179]
[1736243499817,1.96,215.15,215.05,2.26830902]
[1736243499818,9.12448179,215.12,215.06,9.12448179]
[1736243500276,1.96,215.15,215.06,9.12448179]
[1736243500481,9.12448179,215.11,215.05,9.82169081]
[1736243500883,9.12448179,215.1,215.04,20.0]
[1736243501190,9.12448179,215.08,215.02,9.82175039]
[1736243501990,0.6936041,215.13,215.02,9.82175039]
[1736243502173,9.12448179,215.08,215.02,9.82175039]
[1736243502672,0.6936041,215.13,215.02,9.82175039]
[1736243502873,9.12448179,215.09,215.03,29.12448179]
[1736243503171,9.12448179,215.09,215.03,29.82180224]
[1736243503699,1.96,215.15,215.04,9.12448179]
[1736243503880,9.12448179,215.1,215.04,9.12448179]
[1736243504082,9.12448179,215.09,215.03,20.69732045]
[1736243504279,9.12448179,215.09,215.03,29.82180224]
[1736243504682,9.12448179,215.08,215.03,29.82180224]
[1736243505401,9.12448179,215.09,215.03,29.82180224]
[1736243506402,9.12448179,215.1,215.04,9.12448179]
[1736243506599,1.96,215.15,215.08,9.12448179]
[1736243506891,9.12448179,215.14,215.08,9.12448179]
[1736243507090,9.12448179,215.14,215.07,9.12448179]
[1736243507298,9.12448179,215.13,215.07,9.12448179]
[1736243508900,9.12448179,215.14,215.08,9.12448179]
[1736243513484,0.6936041,215.21,215.12,9.12448179]
[1736243513690,1.96,215.21,215.13,9.12448179]
[1736243513995,9.12448179,215.18,215.09,0.69719935]
[1736243514197,9.12448179,215.18,215.12,9.12448179]
[1736243515710,9.12448179,215.18,215.09,0.69719935]
[1736243515908,1.96,215.21,215.14,9.12448179]
[1736243516211,9.12448179,215.19,215.14,9.12448179]
[1736243516712,1.96,215.21,215.14,9.12448179]
[1736243516917,9.12448179,215.19,215.13,9.12448179]
[1736243519322,0.6936041,215.25,215.14,9.82152555]
[1736243519525,9.12448179,215.23,215.17,9.12448179]
[1736243519892,11.08448179,215.24,215.18,9.12448179]
[1736243520399,9.12448179,215.23,215.17,9.12448179]
[1736243522212,11.08448179,215.24,215.18,9.12448179]
[1736243522813,1.96,215.24,215.19,9.12448179]
[1736243523214,0.6936041,215.28,215.19,9.12448179]
[1736243523397,9.12448179,215.24,215.16,0.69685963]
[1736243523718,9.12448179,215.2,215.15,9.12448179]
[1736243524124,9.12448179,215.21,215.15,9.12448179]
[1736243524311,9.12448179,215.22,215.16,29.12448179]
[1736243525092,9.12448179,215.23,215.17,9.12448179]
[1736243525293,9.12448179,215.24,215.17,9.12448179]
[1736243527021,9.12448179,215.23,215.17,9.12448179]
[1736243527224,9.12448179,215.22,215.16,29.12448179]
[1736243527524,9.12448179,215.21,215.14,1.6057]
[1736243527824,9.12448179,215.2,215.14,10.73018179]
[1736243528024,9.06851342,215.2,215.14,10.73018179]
[1736243528622,9.06851342,215.2,215.14,1.6057]
[1736243528924,9.06851342,215.2,215.14,10.73018179]
[1736243529094,9.12448179,215.18,215.14,1.6057]
[1736243529298,9.12448179,215.18,215.13,20.0]
[1736243529995,9.12448179,215.19,215.13,29.12448179]
[1736243530217,9.12448179,215.22,215.16,9.12448179]
[1736243530416,0.6936041,215.26,215.16,9.12448179]
[1736243530621,0.6936041,215.26,215.14,20.0]
[1736243530622,9.12448179,215.19,215.14,20.0]
[1736243532020,9.12448179,215.18,215.14,20.0]
[1736243532323,9.12448179,215.16,215.1,6.5492]
[1736243532524,9.12448179,215.16,215.1,15.67368179]
[1736243532942,9.12448179,215.16,215.1,20.0]
[1736243533226,9.12448179,215.15,215.1,20.0]
[1736243533524,9.12448179,215.17,215.11,9.12448179]
[1736243536895,2.6736041,215.22,215.13,9.12448179]
[1736243537101,9.12448179,215.21,215.15,9.12448179]
[1736243537517,4.3267041,215.24,215.15,9.12448179]
[1736243537518,9.12448179,215.22,215.15,9.12448179]
[1736243537922,9.12448179,215.23,215.16,9.12448179]
[1736243540207,9.12448179,215.23,215.17,9.12448179]
[1736243540406,2.6736041,215.26,215.17,9.12448179]
[1736243540607,9.12448179,215.23,215.17,9.12448179]
[1736243540818,9.12448179,215.24,215.17,9.12448179]
[1736243542700,2.6736041,215.26,215.17,9.12448179]
[1736243543003,9.12448179,215.24,215.17,9.12448179]
[1736243548026,9.12448179,215.21,215.12,7.10101235]
[1736243548216,9.12448179,215.21,215.15,9.12448179]
[1736243550727,9.12448179,215.22,215.15,9.12448179]
[1736243551847,9.12448179,215.23,215.16,9.12448179]
[1736243554230,9.12448179,215.24,215.17,9.12448179]
[1736243555827,9.12448179,215.23,215.16,9.12448179]
[1736243560122,9.12448179,215.24,215.17,9.12448179]
[1736243560940,9.12448179,215.23,215.16,9.12448179]
[1736243562628,9.12448179,215.22,215.15,9.12448179]
[1736243562828,9.12448179,215.22,215.16,9.12448179]
[1736243563945,9.12448179,215.22,215.15,9.12448179]
[1736243565644,9.12448179,215.21,215.15,9.12448179]
[1736243565844,9.12448179,215.21,215.14,9.12448179]
[1736243567842,9.12448179,215.19,215.13,1.5035]
[1736243568040,9.12448179,215.16,215.13,1.5035]
[1736243568437,9.12448179,215.16,215.1,9.12448179]
[1736243569049,9.12448179,215.16,215.12,20.0]
[1736243569546,9.12448179,215.15,215.09,9.12448179]
[1736243571246,9.12448179,215.16,215.1,9.12448179]
[1736243571447,9.12448179,215.17,215.11,9.12448179]
[1736243571642,9.12448179,215.18,215.11,9.12448179]
[1736243573344,1.96,215.19,215.12,9.12448179]
[1736243573525,1.96,215.19,215.13,9.12448179]
[1736243574228,11.08448179,215.19,215.13,9.12448179]
[1736243574549,1.96,215.19,215.13,9.12448179]
[1736243578456,11.08448179,215.19,215.13,9.12448179]
[1736243578647,9.12448179,215.18,215.12,9.12448179]
[1736243584871,9.12448179,215.17,215.11,9.12448179]
[1736243585682,9.81808589,215.16,215.08,1.5662]
[1736243585889,9.12448179,215.15,215.08,10.69068179]
[1736243587153,9.12448179,215.15,215.09,9.12448179]
[1736243589785,2.6536041,215.19,215.1,9.12448179]
[1736243589990,9.12448179,215.16,215.1,9.12448179]
[1736243590793,9.12448179,215.15,215.09,9.12448179]
[1736243594071,9.12448179,215.15,215.08,1.5662]
[1736243594271,9.12448179,215.15,215.09,9.12448179]
[1736243596791,9.12448179,215.16,215.09,9.12448179]
[1736243597102,9.12448179,215.16,215.1,9.12448179]
[1736243598393,9.12448179,215.16,215.09,9.12448179]
[1736243602612,9.12448179,215.16,215.08,1.5662]
[1736243602786,9.12448179,215.16,215.09,9.12448179]
[1736243605082,9.12448179,215.16,215.1,9.12448179]
[1736243607309,9.12448179,215.16,215.09,9.12448179]
[1736243607805,9.12448179,215.16,215.08,1.5662]
[1736243608010,9.12448179,215.15,215.08,1.5662]
[1736243608185,9.12448179,215.16,215.09,9.12448179]
[1736243609114,9.12448179,215.15,215.08,9.12448179]
[1736243614413,9.12448179,215.16,215.08,9.12448179]
[1736243614600,9.12448179,215.16,215.09,9.12448179]
[1736243620021,11.06448179,215.17,215.1,9.12448179]
[1736243620912,11.06448179,215.17,215.06,0.69724777]
[1736243621118,11.06448179,215.17,215.1,9.12448179]
[1736243622036,0.6936041,215.16,215.09,9.12448179]
[1736243622221,9.81808589,215.16,215.09,9.12448179]
[1736243624511,9.12448179,215.17,215.09,9.12448179]
[1736243624837,1.94,215.19,215.11,9.12448179]
[1736243625041,11.06448179,215.19,215.12,9.12448179]
[1736243625216,11.06448179,215.19,215.13,9.12448179]
[1736243626523,9.12448179,215.19,215.13,9.12448179]
[1736243626725,9.81808589,215.19,215.13,9.12448179]
[1736243627023,9.12448179,215.18,215.12,9.12448179]
[1736243627545,9.81808589,215.19,215.13,9.12448179]
[1736243627756,9.12448179,215.19,215.13,9.12448179]
[1736243629317,9.12448179,215.2,215.14,9.12448179]
[1736243630123,2.6336041,215.21,215.14,9.12448179]
[1736243630323,9.12448179,215.2,215.14,9.12448179]
[1736243633370,2.6336041,215.21,215.14,9.12448179]
[1736243633540,9.12448179,215.2,215.14,9.12448179]
[1736243634849,9.81808589,215.21,215.15,9.12448179]
[1736243635621,12.3080041,215.25,215.18,9.12448179]
[1736243635828,11.06448179,215.24,215.18,9.12448179]
[1736243637024,9.12448179,215.23,215.17,9.12448179]
[1736243637838,1.94,215.24,215.18,9.12448179]
[1736243638045,11.06448179,215.24,215.18,9.12448179]
[1736243638354,9.12448179,215.24,215.18,9.12448179]
[1736243638650,9.12448179,215.23,215.17,9.12448179]
[1736243639349,9.12448179,215.24,215.18,9.12448179]
[1736243640353,0.6936041,215.26,215.23,9.12448179]
[1736243640545,0.6936041,215.3,215.25,9.12448179]
[1736243640733,7.19414462,215.31,215.24,9.12448179]
[1736243640931,7.19414462,215.31,215.22,20.0]
[1736243641135,16.31862641,215.31,215.22,20.0]
[1736243641336,9.12448179,215.31,215.24,9.12448179]
[1736243641534,0.6936041,215.3,215.22,20.0]
[1736243641738,9.12448179,215.28,215.22,20.0]
[1736243642133,9.12448179,215.26,215.19,1.535]
[1736243642341,9.12448179,215.26,215.2,9.12448179]
[1736243642638,9.12448179,215.22,215.16,1.94]
[1736243642940,9.12448179,215.21,215.15,9.12448179]
[1736243643353,9.12448179,215.2,215.14,9.12448179]
[1736243644956,4.2717041,215.24,215.15,9.12448179]
[1736243645132,9.12448179,215.22,215.15,9.12448179]
[1736243645327,4.2717041,215.24,215.15,9.12448179]
[1736243645552,9.12448179,215.22,215.15,9.12448179]
[1736243645755,9.12448179,215.22,215.16,9.12448179]
[1736243645953,0.6936041,215.24,215.18,9.12448179]
[1736243646174,11.06448179,215.26,215.19,9.12448179]
[1736243647260,9.12448179,215.25,215.19,9.12448179]
[1736243647436,9.81808589,215.25,215.19,9.12448179]
[1736243649749,9.81808589,215.25,215.18,9.12448179]
[1736243650560,0.6936041,215.28,215.22,9.12448179]
[1736243650756,3.503,215.29,215.24,9.12448179]
[1736243650950,2.6236041,215.29,215.24,9.12448179]
[1736243652059,1.6219,215.34,215.18,1.6413]
[1736243652060,0.6436041,215.3,215.25,9.12448179]
[1736243652361,9.12448179,215.31,215.25,9.12448179]
[1736243652541,0.6436041,215.3,215.24,9.12448179]
[1736243653843,9.76808589,215.3,215.24,9.12448179]
[1736243654545,0.6436041,215.3,215.24,9.12448179]
[1736243654748,9.76808589,215.3,215.24,9.12448179]
[1736243655665,9.12448179,215.29,215.21,20.0]
[1736243655869,0.6436041,215.28,215.23,9.12448179]
[1736243657273,9.12448179,215.3,215.23,9.12448179]
[1736243657646,0.6436041,215.29,215.23,9.12448179]
[1736243660863,9.76808589,215.29,215.22,9.12448179]
[1736243661573,0.6436041,215.29,215.23,9.12448179]
[1736243662566,9.12448179,215.3,215.23,9.12448179]
[1736243662873,9.12448179,215.3,215.24,9.12448179]
[1736243663973,2.6236041,215.31,215.24,9.12448179]
[1736243664171,11.10448179,215.31,215.24,9.12448179]
[1736243664372,0.6436041,215.3,215.24,9.12448179]
[1736243666258,9.76808589,215.3,215.23,9.12448179]
[1736243667473,0.6436041,215.3,215.23,9.12448179]
[1736243667674,11.10448179,215.31,215.25,9.12448179]
[1736243668772,9.12448179,215.3,215.24,9.12448179]
[1736243672377,11.10448179,215.31,215.25,9.12448179]
[1736243673586,9.12448179,215.3,215.24,9.12448179]
[1736243675470,9.12448179,215.27,215.2,20.0]
[1736243675758,9.12448179,215.27,215.2,29.12448179]
[1736243676482,9.12448179,215.27,215.21,9.12448179]
[1736243677282,9.12448179,215.27,215.2,20.0]
[1736243677677,9.12448179,215.27,215.21,9.12448179]
[1736243679000,9.12448179,215.26,215.2,29.12448179]
[1736243679293,9.12448179,215.26,215.2,9.12448179]
[1736243679985,9.12448179,215.25,215.19,9.12448179]
[1736243681469,9.12448179,215.26,215.2,9.12448179]
[1736243684897,9.12448179,215.25,215.19,9.12448179]
[1736243685878,9.12448179,215.25,215.18,9.12448179]
[1736243686280,9.12448179,215.23,215.17,9.12448179]
[1736243688366,2.1734041,215.26,215.18,9.12448179]
[1736243688568,9.12448179,215.23,215.17,9.12448179]
[1736243690795,9.12448179,215.22,215.17,9.12448179]
[1736243690973,9.12448179,215.23,215.17,9.12448179]
[1736243691990,2.1734041,215.26,215.17,9.12448179]
[1736243692199,9.12448179,215.23,215.17,9.12448179]
[1736243693809,1.5298,215.26,215.18,9.12448179]
[1736243694014,9.12448179,215.24,215.18,9.12448179]
[1736243702986,9.12448179,215.23,215.17,9.12448179]
[1736243704489,1.98,215.25,215.18,9.12448179]
[1736243704783,9.12448179,215.24,215.18,9.12448179]
[1736243705083,9.12448179,215.23,215.18,9.12448179]
[1736243705621,9.12448179,215.23,215.17,9.12448179]
[1736243706513,1.98,215.25,215.15,0.69692133]
[1736243706514,9.12448179,215.22,215.15,0.69692133]
[1736243706808,1.98,215.25,215.13,1.5839]
[1736243706809,9.12448179,215.2,215.13,1.5839]
[1736243707098,9.12448179,215.2,215.14,9.12448179]
[1736243711383,9.12448179,215.19,215.14,9.12448179]
[1736243712599,9.12448179,215.18,215.13,1.5839]
[1736243714909,0.6436041,215.23,215.13,11.40543796]
[1736243715112,9.12448179,215.19,215.13,11.40543796]
[1736243715410,0.6436041,215.27,215.17,9.12448179]
[1736243715597,9.12448179,215.23,215.17,9.12448179]
[1736243715801,9.12448179,215.23,215.18,9.12448179]
[1736243716617,9.12448179,215.23,215.17,9.12448179]
[1736243718496,9.12448179,215.23,215.18,9.12448179]
[1736243720615,9.12448179,215.23,215.17,9.12448179]
[1736243720991,9.06857321,215.23,215.17,9.12448179]
[1736243721410,1.98,215.27,215.18,29.12448179]
[1736243721612,9.12448179,215.24,215.18,29.12448179]
[1736243721991,9.12448179,215.23,215.18,29.12448179]
[1736243723710,9.12448179,215.23,215.18,20.0]
[1736243723915,9.12448179,215.23,215.18,29.12448179]
[1736243724805,9.12448179,215.24,215.18,29.12448179]
[1736243725119,9.12448179,215.22,215.16,9.12448179]
[1736243726309,9.12448179,215.22,215.17,9.12448179]
[1736243726702,2.6236041,215.27,215.17,9.12448179]
[1736243727021,9.12448179,215.23,215.17,9.12448179]
[1736243727434,1.98,215.27,215.18,9.12448179]
[1736243727599,9.12448179,215.24,215.18,9.12448179]
[1736243729004,9.12448179,215.23,215.17,9.12448179]
[1736243736740,9.12448179,215.22,215.18,20.0]
[1736243738664,1.96,215.26,215.18,9.12448179]
[1736243738832,9.12448179,215.24,215.18,29.12448179]
[1736243744262,9.12448179,215.24,215.18,20.0]
[1736243747666,9.12448179,215.23,215.18,20.0]
[1736243750570,9.12448179,215.24,215.18,20.0]
[1736243752453,9.12448179,215.24,215.18,24.651]
[1736243752652,9.12448179,215.24,215.18,20.0]
[1736243759387,0.6436041,215.3,215.2,9.12448179]
[1736243759558,0.6436041,215.3,215.21,9.12448179]
[1736243759559,9.12448179,215.27,215.21,9.12448179]
[1736243759963,9.12448179,215.25,215.18,20.69689551]
[1736243760165,9.12448179,215.25,215.19,9.12448179]
[1736243760560,9.12448179,215.26,215.19,9.12448179]
[1736243763188,9.12448179,215.25,215.19,9.12448179]
[1736243765172,9.12448179,215.24,215.18,20.0]
[1736243765485,9.12448179,215.22,215.18,20.0]
[1736243768674,9.12448179,215.21,215.18,20.0]
[1736243769396,9.12448179,215.2,215.18,20.0]
[1736243775573,9.12448179,215.21,215.18,20.0]
[1736243780406,2.6036041,215.25,215.18,20.0]
[1736243780598,9.12448179,215.22,215.18,20.0]
[1736243784213,9.12448179,215.24,215.18,29.12448179]
[1736243784417,9.12448179,215.26,215.2,9.12448179]
[1736243784793,1.96,215.28,215.22,9.12448179]
[1736243785108,11.08448179,215.28,215.22,9.12448179]
[1736243786812,9.12448179,215.27,215.22,9.12448179]
[1736243787813,9.12448179,215.27,215.21,9.12448179]
[1736243788017,9.12448179,215.26,215.21,9.12448179]
[1736243789231,9.12448179,215.26,215.21,6.62448179]
[1736243790192,9.12448179,215.26,215.21,4.12448179]
[1736243792124,9.12448179,215.26,215.2,9.12448179]
[1736243793730,9.12448179,215.24,215.21,20.0]
[1736243796536,9.12448179,215.25,215.2,20.0]
[1736243798412,9.12448179,215.26,215.2,9.12448179]
[1736243798608,9.12448179,215.26,215.2,29.12448179]
[1736243800142,9.12448179,215.25,215.2,20.0]
[1736243800436,9.12448179,215.23,215.17,28.57904896]
[1736243800606,9.12448179,215.21,215.17,17.6365]
[1736243800809,9.12448179,215.22,215.17,17.6365]
[1736243801010,9.12448179,215.23,215.2,20.0]
[1736243801739,9.12448179,215.23,215.21,20.0]
[1736243801924,9.12448179,215.25,215.21,20.0]